[Event "MČR v bleskovém šachu družstev 2019"]
[Site "Teplice, Czech Republic"]
[Date "2019.09.14"]
[Round "7.15"]
[White "Vrbata, Zbynek"]
[Black "Kopta, Pavel"]
[Result "1-0"]
[TimeControl "3 mim. + 2 s"]
[WhiteTitle "FM"]
[BlackTitle "FM"]
[WhiteFideId "301256"]
[BlackFideId "309109"]
[WhiteElo "2324"]
[BlackElo "2234"]

1. d4 {[%emt 00:13:46]} Nf6 {[%emt 00:00:01]} 2. c4 e6 {[%emt 00:00:02]} 3. Nc3
{[%emt 00:00:02]} Bb4 4. Nf3 {[%emt 00:00:02]} c5 {[%emt 00:00:05]} 5. g3
{[%emt 00:00:02]} O-O {[%emt 00:00:07]} 6. Bg2 {[%emt 00:00:10]} d5 {[%emt
00:00:05]} 7. dxc5 {[%emt 00:00:20]} dxc4 {[%emt 00:00:17]} 8. Qxd8 {[%emt
00:00:08]} Rxd8 9. Ne5 {[%emt 00:00:05]} Bxc5 {[%emt 00:00:10]} 10. Nxc4 {[%emt
00:00:03]} Nc6 {[%emt 00:00:08]} 11. O-O {[%emt 00:00:06]} Bd7 {[%emt
00:00:13]} 12. Bf4 {[%emt 00:00:06]} Be8 {[%emt 00:00:16]} 13. a3 {[%emt
00:00:28]} Rac8 {[%emt 00:00:15]} 14. Rfd1 {[%emt 00:00:11]} Nh5 {[%emt
00:01:03]} 15. Bg5 {[%emt 00:00:02]} f6 {[%emt 00:00:04]} 16. Bd2 {[%emt
00:00:13]} g5 {[%emt 00:00:02]} 17. Ne4 {[%emt 00:00:03]} Be7 {[%emt 00:00:03]}
18. Bc3 {[%emt 00:00:02]} Bf7 {[%emt 00:00:34]} 19. Bf3 {[%emt 00:00:06]} f5
{[%emt 00:00:06]} 20. Ned6 {[%emt 00:00:13]} Nf6 {[%emt 00:00:08]} 21. Nxc8
{[%emt 00:00:02]} Rxc8 22. Nd6 {[%emt 00:00:03]} Rb8 {[%emt 00:00:03]} 23. h3
{[%emt 00:00:09]} Kg7 {[%emt 00:00:03]} 24. b4 {[%emt 00:00:09]} a6 {[%emt
00:00:02]} 25. a4 {[%emt 00:00:02]} Kg6 {[%emt 00:00:01]} 26. b5 {[%emt
00:00:02]} axb5 {[%emt 00:00:02]} 27. axb5 Nd8 {[%emt 00:00:01]} 28. Ba5 {[%emt
00:00:07]} b6 {[%emt 00:00:03]} 29. Bc3 Nd7 {[%emt 00:00:03]} 30. Nxf7 {[%emt
00:00:04]} Kxf7 {[%emt 00:00:01]} 31. Rxd7 {[%emt 00:00:02]} 1-0

[Event "MČR v bleskovém šachu družstev 2019"]
[Site "Teplice, Czech Republic"]
[Date "2019.09.14"]
[Round "7.16"]
[White "Routner, Jakub"]
[Black "Kuba, Jindrich"]
[Result "1/2-1/2"]
[TimeControl "3 mim. + 2 s"]
[BlackTitle "FM"]
[WhiteFideId "322245"]
[BlackFideId "318248"]
[WhiteElo "2138"]
[BlackElo "2223"]

1. e4 {[%clk 00:03:02]} {[%emt 00:00:01]} c5 {[%clk 00:03:04]} 2. Nc3 {[%clk
00:03:03]} {[%emt 00:00:02]} e6 {[%clk 00:03:05]} 3. g3 {[%clk 00:03:04]}
{[%emt 00:00:02]} Nc6 {[%clk 00:03:06]} 4. Bg2 {[%clk 00:03:05]} Nf6 {[%clk
00:03:06]} {[%emt 00:00:01]} 5. d3 {[%clk 00:03:06]} {[%emt 00:00:01]} Be7
{[%clk 00:03:06]} {[%emt 00:00:02]} 6. f4 {[%clk 00:02:54]} {[%emt 00:00:13]}
d5 {[%clk 00:03:07]} {[%emt 00:00:01]} 7. e5 {[%clk 00:02:53]} {[%emt
00:00:03]} Nd7 {[%clk 00:03:08]} 8. Nf3 {[%clk 00:02:54]} {[%emt 00:00:01]} a6
{[%clk 00:03:07]} {[%emt 00:00:03]} 9. O-O {[%clk 00:02:53]} {[%emt 00:00:03]}
O-O {[%clk 00:03:05]} {[%emt 00:00:04]} 10. Bd2 {[%clk 00:02:53]} {[%emt
00:00:02]} b5 {[%clk 00:03:06]} 11. Ne2 {[%clk 00:02:51]} {[%emt 00:00:04]} Bb7
{[%clk 00:03:07]} {[%emt 00:00:01]} 12. c3 {[%clk 00:02:40]} {[%emt 00:00:13]}
f6 {[%clk 00:03:01]} {[%emt 00:00:08]} 13. exf6 {[%clk 00:02:37]} {[%emt
00:00:05]} Bxf6 {[%clk 00:03:00]} {[%emt 00:00:02]} 14. d4 {[%clk 00:02:14]}
{[%emt 00:00:25]} cxd4 {[%clk 00:02:52]} {[%emt 00:00:10]} 15. cxd4 {[%clk
00:02:14]} {[%emt 00:00:02]} Qb6 {[%clk 00:02:53]} {[%emt 00:00:02]} 16. Be3
{[%clk 00:02:09]} {[%emt 00:00:06]} Kh8 {[%clk 00:02:42]} {[%emt 00:00:14]} 17.
Qd2 {[%clk 00:02:10]} {[%emt 00:00:01]} Rae8 {[%clk 00:02:43]} {[%emt
00:00:01]} 18. Rac1 {[%clk 00:02:03]} {[%emt 00:00:09]} a5 {[%clk 00:02:31]}
{[%emt 00:00:14]} 19. Ne5 {[%clk 00:01:59]} {[%emt 00:00:06]} Qc7 {[%clk
00:01:59]} {[%emt 00:00:34]} 20. Nxc6 {[%clk 00:01:35]} {[%emt 00:00:25]} Bxc6
{[%clk 00:02:00]} {[%emt 00:00:02]} 21. Qc2 {[%clk 00:01:18]} {[%emt 00:00:18]}
Rc8 {[%clk 00:02:00]} {[%emt 00:00:02]} 22. Bh3 {[%clk 00:01:11]} {[%emt
00:00:10]} Rfe8 {[%clk 00:02:00]} {[%emt 00:00:02]} 23. Kh1 {[%clk 00:01:01]}
{[%emt 00:00:12]} Qd6 {[%clk 00:02:01]} {[%emt 00:00:01]} 24. Qd2 {[%clk
00:00:59]} {[%emt 00:00:04]} a4 {[%clk 00:01:59]} {[%emt 00:00:05]} 25. Ng1
{[%clk 00:00:58]} {[%emt 00:00:03]} Nb6 {[%clk 00:01:59]} {[%emt 00:00:02]} 26.
b3 {[%clk 00:00:57]} {[%emt 00:00:02]} axb3 {[%clk 00:01:52]} {[%emt 00:00:09]}
27. axb3 {[%clk 00:00:58]} {[%emt 00:00:01]} b4 {[%clk 00:01:34]} {[%emt
00:00:20]} 28. Nf3 {[%clk 00:00:53]} {[%emt 00:00:07]} Bb5 {[%clk 00:01:35]}
{[%emt 00:00:01]} 29. Rfe1 {[%clk 00:00:48]} {[%emt 00:00:08]} Nd7 {[%clk
00:01:28]} {[%emt 00:00:08]} 30. Bf2 {[%clk 00:00:44]} {[%emt 00:00:05]} Nf8
{[%clk 00:01:25]} {[%emt 00:00:05]} 31. Ne5 {[%clk 00:00:41]} {[%emt 00:00:06]}
Bxe5 {[%clk 00:01:22]} {[%emt 00:00:05]} 32. Rxe5 {[%clk 00:00:41]} {[%emt
00:00:02]} Rxc1+ {[%clk 00:01:17]} {[%emt 00:00:07]} 33. Qxc1 {[%clk 00:00:42]}
Nd7 {[%clk 00:01:18]} {[%emt 00:00:01]} 34. Re1 {[%clk 00:00:38]} {[%emt
00:00:06]} Nf6 {[%clk 00:01:19]} {[%emt 00:00:02]} 35. Re5 {[%clk 00:00:32]}
{[%emt 00:00:08]} Ne4 {[%clk 00:01:12]} {[%emt 00:00:09]} 36. Be3 {[%clk
00:00:28]} {[%emt 00:00:04]} Bd7 {[%clk 00:01:12]} {[%emt 00:00:03]} 37. Qe1
{[%clk 00:00:21]} {[%emt 00:00:10]} Kg8 {[%clk 00:01:08]} {[%emt 00:00:05]} 38.
Bg2 {[%clk 00:00:16]} {[%emt 00:00:07]} Nf6 {[%clk 00:01:09]} {[%emt 00:00:01]}
39. Bd2 {[%clk 00:00:12]} {[%emt 00:00:06]} h6 {[%clk 00:01:06]} {[%emt
00:00:06]} 40. Bxb4 {[%clk 00:00:12]} Qb6 {[%clk 00:01:06]} {[%emt 00:00:02]}
41. Bc5 {[%clk 00:00:09]} {[%emt 00:00:05]} Qxb3 {[%clk 00:01:04]} {[%emt
00:00:04]} 42. Kg1 {[%clk 00:00:07]} {[%emt 00:00:03]} Qb5 {[%clk 00:00:53]}
{[%emt 00:00:12]} 43. h3 {[%clk 00:00:08]} {[%emt 00:00:02]} Qb8 {[%clk
00:00:33]} {[%emt 00:00:22]} 44. f5 {[%clk 00:00:09]} {[%emt 00:00:02]} Qc8
{[%clk 00:00:33]} {[%emt 00:00:02]} 45. g4 {[%clk 00:00:09]} {[%emt 00:00:02]}
exf5 {[%clk 00:00:31]} {[%emt 00:00:04]} 46. Rxe8+ {[%clk 00:00:08]} {[%emt
00:00:04]} Bxe8 {[%clk 00:00:30]} {[%emt 00:00:03]} 47. gxf5 {[%clk 00:00:04]}
{[%emt 00:00:05]} Qxf5 {[%clk 00:00:30]} {[%emt 00:00:02]} 48. Qe5 {[%clk
00:00:03]} {[%emt 00:00:03]} Qxe5 {[%clk 00:00:20]} {[%emt 00:00:12]} 49. dxe5
{[%clk 00:00:05]} Ne4 {[%clk 00:00:21]} {[%emt 00:00:01]} 50. Bxe4 {[%clk
00:00:06]} dxe4 {[%emt 00:00:01]} 51. Kf2 {[%clk 00:00:08]} Bc6 {[%clk
00:00:22]} {[%emt 00:00:02]} 52. Ke3 {[%clk 00:00:10]} Kf7 {[%clk 00:00:23]} 53.
Kf4 {[%clk 00:00:11]} Ke6 {[%clk 00:00:24]} 54. Bd4 {[%clk 00:00:12]} Bd5
{[%clk 00:00:25]} 55. Bf2 {[%clk 00:00:14]} g5+ {[%clk 00:00:27]} {[%emt
00:00:01]} 56. Ke3 {[%clk 00:00:14]} Kxe5 {[%clk 00:00:28]} {[%emt 00:00:01]}
57. Bg3+ {[%clk 00:00:16]} Kf5 {[%clk 00:00:29]} 58. Bf2 {[%clk 00:00:17]} h5
{[%clk 00:00:30]} 59. h4 {[%clk 00:00:18]} g4 {[%clk 00:00:31]} {[%emt
00:00:02]} 60. Bg3 {[%clk 00:00:20]} Bb7 {[%clk 00:00:31]} {[%emt 00:00:01]} 61.
Bf2 {[%clk 00:00:21]} Ke6 {[%clk 00:00:32]} 62. Bg3 {[%clk 00:00:23]} Kd5
{[%clk 00:00:33]} 63. Bf4 {[%clk 00:00:24]} Kc4 {[%clk 00:00:34]} 64. Bg3
{[%clk 00:00:25]} Kb3 {[%clk 00:00:36]} 65. Bf2 {[%clk 00:00:26]} Kc2 {[%clk
00:00:37]} 66. Ke2 {[%clk 00:00:28]} Ba6 {[%clk 00:00:23]} {[%emt 00:00:17]} 67.
Ke3 {[%clk 00:00:29]} {[%emt 00:00:01]} Bd3 68. Bg3 Kd1 {[%clk 00:00:25]}
{[%emt 00:00:01]} 69. Bf2 {[%clk 00:00:31]} Bb1 {[%clk 00:00:26]} 70. Bg3
{[%clk 00:00:33]} Bd3 {[%clk 00:00:19]} {[%emt 00:00:09]} 71. Bf2 {[%clk
00:00:35]} 1/2-1/2

[Event "MČR v bleskovém šachu družstev 2019"]
[Site "Teplice, Czech Republic"]
[Date "2019.09.14"]
[Round "7.17"]
[White "Trepka, Jan"]
[Black "Vojta, Tomas"]
[Result "0-1"]
[TimeControl "3 mim. + 2 s"]
[BlackTitle "FM"]
[WhiteFideId "322814"]
[BlackFideId "308781"]
[WhiteElo "2186"]
[BlackElo "2353"]

1. d4 {[%clk 00:03:02]} {[%emt 00:00:01]} d5 {[%emt 00:00:01]} 2. c4 Nc6 {[%clk
00:03:04]} {[%emt 00:00:01]} 3. Nf3 {[%clk 00:03:02]} {[%emt 00:00:03]} Bg4
{[%clk 00:03:04]} {[%emt 00:00:01]} 4. Nc3 {[%clk 00:02:53]} {[%emt 00:00:12]}
e6 {[%clk 00:03:05]} 5. Bf4 {[%clk 00:02:51]} {[%emt 00:00:04]} dxc4 {[%clk
00:02:57]} {[%emt 00:00:11]} 6. e3 {[%clk 00:02:47]} {[%emt 00:00:06]} a6
{[%clk 00:02:51]} {[%emt 00:00:08]} 7. Bxc4 {[%clk 00:02:47]} {[%emt 00:00:02]}
Nf6 {[%clk 00:02:52]} 8. h3 {[%clk 00:02:41]} {[%emt 00:00:07]} Bh5 {[%clk
00:02:51]} {[%emt 00:00:03]} 9. O-O {[%clk 00:02:41]} {[%emt 00:00:02]} Bd6
{[%clk 00:02:52]} 10. Bxd6 {[%clk 00:02:34]} {[%emt 00:00:10]} Qxd6 {[%clk
00:02:51]} {[%emt 00:00:03]} 11. Be2 {[%clk 00:02:32]} {[%emt 00:00:04]} O-O
{[%clk 00:02:48]} {[%emt 00:00:04]} 12. Qb3 {[%clk 00:02:25]} {[%emt 00:00:09]}
Rab8 {[%clk 00:02:43]} {[%emt 00:00:08]} 13. Rac1 {[%clk 00:02:24]} {[%emt
00:00:02]} Ne7 {[%clk 00:02:39]} {[%emt 00:00:06]} 14. Ne5 {[%clk 00:02:16]}
{[%emt 00:00:10]} Bxe2 15. Nxe2 {[%clk 00:02:17]} c6 {[%clk 00:02:32]} {[%emt
00:00:06]} 16. Ng3 {[%clk 00:01:59]} {[%emt 00:00:20]} Ned5 {[%clk 00:02:32]}
{[%emt 00:00:03]} 17. Rfd1 {[%clk 00:01:56]} {[%emt 00:00:05]} Rfd8 {[%clk
00:02:24]} {[%emt 00:00:09]} 18. Qc4 {[%clk 00:01:51]} {[%emt 00:00:07]} h6
{[%clk 00:02:14]} {[%emt 00:00:12]} 19. a3 {[%clk 00:01:51]} {[%emt 00:00:02]}
Rbc8 {[%clk 00:02:12]} {[%emt 00:00:04]} 20. b4 {[%clk 00:01:52]} {[%emt
00:00:02]} Nd7 {[%clk 00:02:02]} {[%emt 00:00:11]} 21. Nxd7 {[%clk 00:01:49]}
{[%emt 00:00:05]} Qxd7 {[%clk 00:02:01]} {[%emt 00:00:04]} 22. Ne4 {[%clk
00:01:45]} {[%emt 00:00:06]} Qe7 {[%clk 00:01:59]} {[%emt 00:00:04]} 23. Nc5
{[%clk 00:01:38]} {[%emt 00:00:09]} Rc7 {[%clk 00:01:56]} {[%emt 00:00:05]} 24.
Rc2 {[%clk 00:01:30]} {[%emt 00:00:09]} Nf6 {[%clk 00:01:47]} {[%emt 00:00:11]}
25. Rdc1 {[%clk 00:01:30]} {[%emt 00:00:03]} e5 {[%clk 00:01:41]} {[%emt
00:00:08]} 26. dxe5 {[%clk 00:01:20]} {[%emt 00:00:11]} Qxe5 {[%clk 00:01:42]}
{[%emt 00:00:01]} 27. Nd3 {[%clk 00:01:15]} {[%emt 00:00:08]} Qf5 {[%clk
00:01:36]} {[%emt 00:00:08]} 28. Qf4 {[%clk 00:01:06]} {[%emt 00:00:11]} Qxf4
{[%clk 00:01:25]} {[%emt 00:00:13]} 29. Nxf4 {[%clk 00:01:07]} {[%emt
00:00:01]} Rcd7 {[%clk 00:01:27]} 30. Kf1 {[%clk 00:00:55]} {[%emt 00:00:14]}
Ne4 {[%clk 00:01:26]} {[%emt 00:00:02]} 31. f3 {[%clk 00:00:44]} {[%emt
00:00:13]} Ng3+ {[%clk 00:01:12]} {[%emt 00:00:16]} 32. Kf2 {[%clk 00:00:43]}
{[%emt 00:00:04]} Nf5 {[%clk 00:01:12]} {[%emt 00:00:01]} 33. e4 {[%emt
00:00:06]} Nd4 {[%clk 00:01:06]} {[%emt 00:00:08]} 34. Rd2 {[%clk 00:00:39]}
{[%emt 00:00:03]} Nb5 {[%clk 00:01:02]} {[%emt 00:00:05]} 35. Rxd7 {[%clk
00:00:37]} {[%emt 00:00:04]} Rxd7 {[%clk 00:01:04]} 36. Rc2 {[%clk 00:00:38]}
{[%emt 00:00:02]} Nxa3 {[%clk 00:00:58]} {[%emt 00:00:08]} 37. Ra2 {[%clk
00:00:36]} {[%emt 00:00:04]} Nb5 {[%clk 00:00:57]} {[%emt 00:00:03]} 38. Ke3
{[%clk 00:00:37]} Kf8 {[%clk 00:00:56]} {[%emt 00:00:04]} 39. Nd3 {[%clk
00:00:37]} {[%emt 00:00:02]} Re7 {[%clk 00:00:47]} {[%emt 00:00:11]} 40. Rd2
{[%clk 00:00:35]} {[%emt 00:00:04]} Ke8 {[%clk 00:00:46]} {[%emt 00:00:03]} 41.
Nc5 {[%clk 00:00:36]} f6 {[%clk 00:00:32]} {[%emt 00:00:16]} 42. h4 {[%clk
00:00:35]} {[%emt 00:00:02]} Kf7 {[%clk 00:00:34]} 43. g4 {[%clk 00:00:36]}
{[%emt 00:00:02]} Na3 {[%clk 00:00:34]} {[%emt 00:00:02]} 44. Rd3 {[%clk
00:00:26]} {[%emt 00:00:11]} Nc4+ {[%clk 00:00:34]} {[%emt 00:00:02]} 45. Kf4
{[%clk 00:00:26]} {[%emt 00:00:02]} Ne5 {[%clk 00:00:32]} {[%emt 00:00:05]} 46.
Rd8 {[%clk 00:00:27]} b6 {[%clk 00:00:30]} {[%emt 00:00:04]} 47. Nd3 {[%clk
00:00:13]} {[%emt 00:00:16]} Nxd3+ {[%clk 00:00:26]} 48. Rxd3 {[%clk 00:00:14]}
a5 {[%clk 00:00:27]} {[%emt 00:00:02]} 49. bxa5 {[%clk 00:00:15]} bxa5 {[%clk
00:00:28]} {[%emt 00:00:01]} 50. Ra3 {[%clk 00:00:16]} Ra7 {[%clk 00:00:29]} 51.
e5 {[%clk 00:00:16]} {[%emt 00:00:02]} Ke6 {[%clk 00:00:29]} {[%emt 00:00:03]}
52. exf6 gxf6 {[%clk 00:00:30]} 53. Ke4 {[%clk 00:00:18]} {[%emt 00:00:01]} c5
{[%clk 00:00:30]} {[%emt 00:00:03]} 54. f4 {[%clk 00:00:18]} a4 {[%clk
00:00:31]} {[%emt 00:00:01]} 55. g5 {[%clk 00:00:19]} {[%emt 00:00:01]} hxg5
{[%clk 00:00:32]} 56. fxg5 {[%clk 00:00:20]} {[%emt 00:00:02]} fxg5 {[%clk
00:00:28]} {[%emt 00:00:05]} 57. hxg5 {[%clk 00:00:21]} Ra5 {[%clk 00:00:24]}
{[%emt 00:00:06]} 58. g6 {[%clk 00:00:17]} {[%emt 00:00:06]} Kf6 {[%clk
00:00:22]} {[%emt 00:00:05]} 59. Rg3 {[%clk 00:00:11]} {[%emt 00:00:07]} Kg7
{[%clk 00:00:23]} 60. Kd5 {[%clk 00:00:09]} {[%emt 00:00:05]} a3 {[%clk
00:00:23]} {[%emt 00:00:02]} 61. Rg1 {[%clk 00:00:11]} a2 {[%clk 00:00:23]}
{[%emt 00:00:02]} 62. Ra1 {[%clk 00:00:13]} Kxg6 {[%clk 00:00:25]} 63. Kc4
{[%clk 00:00:08]} {[%emt 00:00:06]} Kf5 {[%clk 00:00:26]} {[%emt 00:00:02]} 64.
Kb3 {[%clk 00:00:10]} Ke4 {[%clk 00:00:26]} {[%emt 00:00:01]} 65. Rxa2 {[%clk
00:00:12]} Rxa2 {[%clk 00:00:26]} 66. Kxa2 {[%clk 00:00:13]} Kd3 {[%clk
00:00:27]} 67. Kb1 {[%clk 00:00:13]} {[%emt 00:00:02]} Kc3 {[%clk 00:00:28]}
{[%emt 00:00:01]} 68. Kc1 {[%clk 00:00:14]} {[%emt 00:00:01]} c4 {[%clk
00:00:29]} {[%emt 00:00:01]} 69. Kd1 {[%clk 00:00:16]} Kb2 {[%emt 00:00:05]}
0-1

[Event "MČR v bleskovém šachu družstev 2019"]
[Site "Teplice, Czech Republic"]
[Date "2019.09.14"]
[Round "7.18"]
[White "Zeman, Matyas"]
[Black "Ruzicka, Ales"]
[Result "1-0"]
[TimeControl "3 mim. + 2 s"]
[WhiteFideId "364398"]
[BlackFideId "325252"]
[WhiteElo "2094"]
[BlackElo "2102"]

1. d4 {[%clk 00:03:02]} {[%emt 00:00:01]} Nf6 {[%clk 00:03:03]} {[%emt
00:00:02]} 2. Nc3 {[%clk 00:03:03]} d5 {[%clk 00:03:03]} {[%emt 00:00:02]} 3.
Bf4 {[%clk 00:03:04]} e6 {[%clk 00:03:03]} {[%emt 00:00:02]} 4. e3 {[%clk
00:03:01]} {[%emt 00:00:05]} Bd6 {[%clk 00:03:03]} {[%emt 00:00:02]} 5. Bg3
{[%clk 00:03:02]} {[%emt 00:00:01]} a6 {[%clk 00:03:03]} {[%emt 00:00:02]} 6.
Nf3 {[%clk 00:03:02]} {[%emt 00:00:02]} c5 {[%clk 00:02:58]} {[%emt 00:00:07]}
7. dxc5 {[%clk 00:03:03]} {[%emt 00:00:02]} Bxc5 {[%clk 00:02:59]} 8. Bd3
{[%clk 00:03:04]} Nc6 {[%clk 00:02:58]} {[%emt 00:00:03]} 9. O-O {[%clk
00:03:03]} {[%emt 00:00:03]} O-O {[%clk 00:02:55]} {[%emt 00:00:04]} 10. e4
{[%clk 00:03:05]} d4 {[%clk 00:02:25]} {[%emt 00:00:34]} 11. Nb1 {[%clk
00:02:56]} {[%emt 00:00:10]} h6 {[%clk 00:02:06]} {[%emt 00:00:21]} 12. a3
{[%clk 00:02:56]} {[%emt 00:00:03]} b5 {[%clk 00:02:07]} 13. Nbd2 {[%clk
00:02:51]} {[%emt 00:00:07]} Bb7 {[%clk 00:02:07]} {[%emt 00:00:02]} 14. e5
{[%clk 00:02:48]} {[%emt 00:00:04]} Nd5 {[%clk 00:01:54]} {[%emt 00:00:15]} 15.
Ne4 {[%clk 00:02:49]} {[%emt 00:00:01]} Be7 {[%clk 00:01:54]} {[%emt 00:00:02]}
16. Qe2 {[%clk 00:02:47]} {[%emt 00:00:04]} Rc8 {[%clk 00:01:48]} {[%emt
00:00:08]} 17. h4 {[%clk 00:02:43]} {[%emt 00:00:07]} Na5 {[%clk 00:01:43]}
{[%emt 00:00:07]} 18. b3 {[%clk 00:01:08]} {[%emt 00:01:37]} Nc3 {[%clk
00:01:34]} {[%emt 00:00:11]} 19. Nxc3 {[%clk 00:01:06]} {[%emt 00:00:03]} dxc3
{[%clk 00:00:58]} {[%emt 00:00:38]} 20. a4 {[%clk 00:01:06]} {[%emt 00:00:03]}
Bxf3 {[%clk 00:00:38]} {[%emt 00:00:21]} 21. Qxf3 {[%clk 00:01:06]} {[%emt
00:00:02]} Rb8 {[%clk 00:00:21]} {[%emt 00:00:19]} 22. axb5 {[%clk 00:00:53]}
{[%emt 00:00:15]} axb5 {[%clk 00:00:22]} 23. h5 {[%clk 00:00:54]} {[%emt
00:00:03]} f5 {[%clk 00:00:16]} {[%emt 00:00:08]} 24. exf6 {[%clk 00:00:53]}
{[%emt 00:00:03]} Rxf6 {[%clk 00:00:14]} {[%emt 00:00:04]} 25. Qe4 {[%clk
00:00:54]} Qb6 {[%clk 00:00:10]} {[%emt 00:00:05]} 26. Bxb8 {[%clk 00:00:53]}
{[%emt 00:00:03]} 1-0

[Event "MČR v bleskovém šachu družstev 2019"]
[Site "Teplice, Czech Republic"]
[Date "2019.09.14"]
[Round "7.19"]
[White "Loskot, Petr"]
[Black "Svanda, Ondrej"]
[Result "0-1"]
[TimeControl "3 mim. + 2 s"]
[BlackTitle "FM"]
[WhiteFideId "319570"]
[BlackFideId "359670"]
[WhiteElo "2010"]
[BlackElo "1924"]

1. e4 {[%clk 00:03:02]} c5 {[%clk 00:03:04]} 2. Nf3 {[%clk 00:03:03]} {[%emt
00:00:01]} d6 {[%clk 00:03:05]} 3. Bb5+ {[%clk 00:03:04]} {[%emt 00:00:03]} Bd7
{[%clk 00:03:02]} {[%emt 00:00:05]} 4. Bxd7+ {[%clk 00:03:02]} {[%emt
00:00:03]} Qxd7 {[%clk 00:03:03]} {[%emt 00:00:01]} 5. O-O {[%clk 00:03:02]}
{[%emt 00:00:02]} Nc6 {[%clk 00:02:58]} {[%emt 00:00:07]} 6. c3 {[%clk
00:03:03]} Nf6 {[%clk 00:02:51]} {[%emt 00:00:10]} 7. Re1 {[%clk 00:03:04]}
{[%emt 00:00:01]} e6 {[%clk 00:02:52]} {[%emt 00:00:01]} 8. d4 {[%clk
00:03:05]} {[%emt 00:00:01]} cxd4 {[%clk 00:02:53]} {[%emt 00:00:02]} 9. cxd4
{[%clk 00:03:05]} {[%emt 00:00:01]} d5 {[%clk 00:02:54]} 10. e5 {[%clk
00:03:02]} {[%emt 00:00:06]} Ne4 {[%clk 00:02:55]} 11. Nbd2 {[%clk 00:03:00]}
{[%emt 00:00:04]} Nxd2 {[%clk 00:02:55]} {[%emt 00:00:03]} 12. Bxd2 {[%clk
00:02:53]} {[%emt 00:00:09]} Be7 {[%clk 00:02:56]} 13. Bg5 {[%clk 00:02:50]}
{[%emt 00:00:05]} O-O {[%clk 00:02:50]} {[%emt 00:00:08]} 14. Bxe7 {[%clk
00:02:50]} {[%emt 00:00:03]} Qxe7 {[%clk 00:02:47]} {[%emt 00:00:05]} 15. a3
{[%clk 00:02:50]} {[%emt 00:00:02]} Rfc8 {[%clk 00:02:36]} {[%emt 00:00:12]} 16.
Qd3 {[%clk 00:02:51]} {[%emt 00:00:01]} Na5 {[%clk 00:02:23]} {[%emt 00:00:16]}
17. b3 {[%clk 00:02:50]} {[%emt 00:00:03]} Rc7 {[%clk 00:02:15]} {[%emt
00:00:10]} 18. Qb5 {[%clk 00:02:11]} {[%emt 00:00:40]} b6 {[%clk 00:02:16]}
{[%emt 00:00:01]} 19. b4 {[%clk 00:01:39]} {[%emt 00:00:34]} Nc4 {[%clk
00:02:11]} {[%emt 00:00:07]} 20. a4 {[%clk 00:01:40]} {[%emt 00:00:01]} a6
{[%clk 00:02:06]} {[%emt 00:00:07]} 0-1

[Event "MČR v bleskovém šachu družstev 2019"]
[Site "Teplice, Czech Republic"]
[Date "2019.09.14"]
[Round "7.21"]
[White "Soural, Jan"]
[Black "Bujak, Michal"]
[Result "1-0"]
[TimeControl "3 mim. + 2 s"]
[WhiteFideId "311928"]
[BlackFideId "316318"]
[WhiteElo "2107"]
[BlackElo "2120"]

1. d4 {[%clk 00:03:03]} Nf6 {[%clk 00:03:03]} {[%emt 00:00:02]} 2. c4 {[%clk
00:03:05]} c5 {[%clk 00:03:04]} {[%emt 00:00:01]} 3. d5 {[%clk 00:03:06]} b5
{[%clk 00:03:05]} {[%emt 00:00:01]} 4. cxb5 {[%clk 00:03:07]} {[%emt 00:00:01]}
a6 {[%clk 00:03:07]} 5. e3 {[%clk 00:03:09]} e6 {[%clk 00:03:00]} {[%emt
00:00:08]} 6. Nc3 {[%clk 00:03:09]} {[%emt 00:00:02]} Bb7 {[%clk 00:02:45]}
{[%emt 00:00:17]} 7. e4 {[%clk 00:03:10]} exd5 {[%clk 00:02:45]} {[%emt
00:00:02]} 8. exd5 {[%clk 00:03:11]} {[%emt 00:00:01]} axb5 {[%clk 00:02:31]}
{[%emt 00:00:16]} 9. Bxb5 {[%clk 00:03:10]} {[%emt 00:00:03]} Bd6 {[%clk
00:02:26]} {[%emt 00:00:06]} 10. Nf3 {[%clk 00:03:05]} {[%emt 00:00:08]} O-O
{[%clk 00:02:26]} {[%emt 00:00:02]} 11. O-O {[%clk 00:03:05]} {[%emt 00:00:01]}
Na6 {[%clk 00:01:40]} {[%emt 00:00:49]} 12. Bg5 {[%clk 00:03:06]} {[%emt
00:00:01]} h6 {[%clk 00:01:29]} {[%emt 00:00:13]} 13. Bh4 {[%clk 00:03:03]}
{[%emt 00:00:06]} g5 {[%clk 00:01:13]} {[%emt 00:00:17]} 14. Bg3 {[%clk
00:02:57]} {[%emt 00:00:08]} Bxg3 {[%clk 00:01:13]} {[%emt 00:00:02]} 15. hxg3
{[%clk 00:02:55]} {[%emt 00:00:04]} Nc7 {[%clk 00:00:57]} {[%emt 00:00:18]} 16.
Bc4 {[%clk 00:02:56]} {[%emt 00:00:02]} d6 {[%clk 00:00:54]} {[%emt 00:00:04]}
17. Re1 {[%clk 00:02:39]} {[%emt 00:00:20]} Qd7 {[%clk 00:00:55]} {[%emt
00:00:01]} 18. Qd3 {[%clk 00:02:33]} {[%emt 00:00:08]} Qg4 {[%clk 00:00:47]}
{[%emt 00:00:09]} 19. Re7 {[%clk 00:02:24]} {[%emt 00:00:11]} Ba6 {[%clk
00:00:41]} {[%emt 00:00:09]} 20. Bxa6 {[%clk 00:01:41]} {[%emt 00:00:44]} Nxa6
{[%clk 00:00:42]} {[%emt 00:00:01]} 21. Rae1 {[%clk 00:01:42]} Nb4 {[%clk
00:00:41]} {[%emt 00:00:04]} 22. Qd2 {[%clk 00:01:15]} {[%emt 00:00:29]} Nxa2
{[%clk 00:00:26]} {[%emt 00:00:17]} 23. Ne4 {[%clk 00:01:11]} {[%emt 00:00:06]}
Nxe4 {[%clk 00:00:23]} {[%emt 00:00:05]} 24. R7xe4 {[%clk 00:01:12]} {[%emt
00:00:01]} Qf5 {[%clk 00:00:24]} {[%emt 00:00:01]} 25. g4 {[%clk 00:01:11]}
{[%emt 00:00:04]} Qg6 {[%clk 00:00:19]} {[%emt 00:00:06]} 26. Nh2 {[%clk
00:01:03]} {[%emt 00:00:10]} Nb4 {[%clk 00:00:19]} {[%emt 00:00:02]} 27. Nf1
{[%clk 00:01:04]} {[%emt 00:00:02]} Ra7 {[%clk 00:00:04]} {[%emt 00:00:17]} 28.
Ng3 {[%clk 00:01:00]} {[%emt 00:00:06]} Rb8 {[%clk 00:00:00]} {[%emt 00:00:05]}
29. Nf5 {[%clk 00:01:00]} {[%emt 00:00:05]} 1-0